Cogmind - Beta 13 @@@ ROGUE MODE // 2024.04.20 @ 14:29:51 Player: Bace Troncons Result: Destroyed by G-47 Trooper with Particle Gun Performance ------------- Evolutions (0) 0 Regions Visited (2) 400 Robots Destroyed (24) 120 Value Destroyed (543) 543 Prototype IDs (2) 40 Alien Tech Used (0) 0 Bonus (7) 7 TOTAL SCORE: 1110 Bonus ------- Follower Combat Kills 7 Cogmind --------- Core Integrity 0/250 Matter 300/300 Energy 125/125 System Corruption 0% Temperature Hot (205) Movement Core (450) Ox8 Location -10/Mines Parts ------- > --- POWER (1) -------- Light Ion Engine > --- PROPULSION (2) --- (None) > --- UTILITY (2) ------ Large Storage Unit Signal Interpreter > --- WEAPON (2) ------- Enhanced Flamer > --- INVENTORY (15) --- Small Storage Unit Visual Processing Unit Sensor Array Sensor Array Sensor Array Hacking Suite Thief Drone Bay Grenade Launcher Datajack Datajack Mining Laser Peak State ------------ > --- POWER ------------ Light Nuclear Core > --- PROPULSION ------- Light Treads Light Treads > --- UTILITY ---------- Large Storage Unit Signal Interpreter > --- WEAPON ----------- Enhanced Flamer > --- INVENTORY -------- Light Ion Engine Light Treads Small Storage Unit Visual Processing Unit Sensor Array Sensor Array Hacking Suite Thief Drone Bay Datajack Datajack Mining Laser [Rating: 12] Favorites ----------- Power Light Nuclear Core Engine Ion Engine Power Core Light Nuclear Core Propulsion Light Treads Treads Light Treads Wheel Wheel Hover Unit Hover Unit Utility Large Storage Unit Device Sensor Array Storage Large Storage Unit Processor Signal Interpreter Weapon Light Assault Rifle Ballistic Gun Light Assault Rifle Special Weapon Enhanced Flamer Build | -11 -10 -10 ------- Run | Yrd Mat Min Slots Evolved . | . . . Power . | . . . Propulsion . | . . . Utility . | . . . Weapon . | . . . Parts Attached 27 | 7 17 3 Power 5 | 1 3 1 Engine 3 | 1 1 1 Core 2 | . 2 . Reactor . | . . . Propulsion 10 | 3 6 1 Treads 8 | 2 5 1 Leg . | . . . Wheel 1 | 1 . . Hover 1 | . 1 . Flight . | . . . Utility 7 | 1 6 . Device 1 | . 1 . Storage 3 | 1 2 . Processor 3 | . 3 . Hackware . | . . . Protection . | . . . Artifact . | . . . Weapon 5 | 2 2 1 Energy Gun . | . . . Energy Cannon . | . . . Ballistic Gun 4 | 2 2 . Ballistic Cannon . | . . . Launcher . | . . . Special Weapon 1 | . . 1 Impact Weapon . | . . . Slashing Weapon . | . . . Piercing Weapon . | . . . Special Melee Weapon . | . . . Unidentified Prototypes . | . . . Parts Lost 7 | . 3 4 Power 1 | . . 1 Propulsion 4 | . 1 3 Utility . | . . . Weapon 2 | . 2 . Highest Loss Streak 2 | . 2 1 To Critical Strikes . | . . . Average Slot Usage (%) 84 | . 93 73 Engine 6 | . 7 5 Core 6 | . 6 7 Treads 24 | . 27 21 Storage 14 | . 14 14 Processor 13 | . 12 14 Ballistic Gun 12 | . 23 . Special Weapon 4 | . . 9 Naked Turns . | . . . Heaviest Build 27 | 12 27 27 Greatest Support 40 | 40 40 40 Greatest Overweight (x) 8 | . 8 7 Average Overweight (x) . | . . . Largest Inventory Capacity 15 | 8 15 15 Average Capacity 14 | 6 14 15 Most Carried 13 | 4 12 13 Average Carried 9 | 2 8 10 Final Capacity 15 | 8 15 15 Final Carried 11 | 4 9 11 Class Distribution -------------------- 100% | Mutant Dominant Class ---------------- Mutant | -10/Materials Mutant | -10/Mines Resources | -11 -10 -10 ----------- Run | Yrd Mat Min Matter Collected 634 | 245 359 30 Remotely . | . . . Salvage Created 647 | . 588 59 Parts 50 | . 41 9 Haulers Intercepted 1 | . 1 . Recyclers Shooed 1 | . 1 . Parts Field Recycled . | . . . Retrieved Matter . | . . . Parts Self-Destructed . | . . . Prevented . | . . . Kills | -11 -10 -10 ------- Run | Yrd Mat Min Combat Hostiles Destroyed 18 | . 13 5 Guns 13 | . 13 . Cannons 5 | . . 5 Classes Destroyed 6 | . 5 1 Tunneler 1 | . . 1 Hauler 1 | . 1 . Operator 2 | . 2 . Watcher 2 | . 2 . Swarmer 7 | . 3 4 Grunt 11 | . 10 1 Best Kill Streak 2 | . 2 2 Combat Bots Only 2 | . 2 2 Max Kills in Single Turn 1 | . 1 1 Gunslinging . | . . . Exploded . | . . . Melee . | . . . Uniques/NPCs Destroyed . | . . . Combat | -11 -10 -10 -------- Run | Yrd Mat Min Hostile Shots Fired 158 | . 131 27 Missed 41 | . 36 5 Damage Taken 1235 | . 1013 222 Core 258 | . 199 59 Absorbed by Shields . | . . . Core Remaining (%) 100 | 100 . . Volleys Fired 109 | . 94 15 Largest 2 | . 2 1 Hottest 80 | . 40 80 Shots Fired 193 | . 178 15 Gun 178 | . 178 . Cannon . | . . . Launcher . | . . . Special 15 | . . 15 Kinetic 178 | . 178 . Thermal 15 | . . 15 Explosive . | . . . Electromagnetic . | . . . Robot Hit Streak 14 | . 14 5 Robot Miss Streak 3 | . 3 1 Penetration Max . | . . . Secondary Targets 2 | . 2 . Max Gunslinging Chain 1 | . 1 . Shots Hit Robots 139 | . 126 13 Core Hits 56 | . 48 8 Critical Kills . | . . . Critical Parts Destroyed 2 | . 2 . Critical Strikes 5 | . 2 3 Burn 3 | . . 3 Destroy 2 | . 2 . Melee Attacks . | . . . Impact . | . . . Slashing . | . . . Piercing . | . . . Sneak Attacks . | . . . Combat Hostiles . | . . . Follow-up Attacks . | . . . Damage Inflicted 1152 | . 1000 152 Guns 1000 | . 1000 . Cannons . | . . . Explosions . | . . . Melee . | . . . Ramming . | . . . Kinetic 1000 | . 1000 . Thermal 152 | . . 152 Explosive . | . . . Electromagnetic . | . . . Impact . | . . . Slashing . | . . . Piercing . | . . . Highest Corruption . | . . . Average Corruption . | . . . Corruption Purged . | . . . Corruption Blocked . | . . . Overload Shots . | . . . Overflow Damage . | . . . Projectiles . | . . . Explosions . | . . . Melee . | . . . Knockbacks . | . . . Impact . | . . . Kinetic . | . . . Secondary . | . . . Self-Inflicted Damage . | . . . Shots . | . . . Rammed . | . . . Targets Rammed . | . . . Kicked . | . . . Crushed . | . . . Highest Temperature 196 | . 30 196 Average Temperature 21 | . 8 50 Received Heat Transfer 474 | . 429 45 Siege Activations . | . . . Robots Corrupted . | . . . Combat Hostiles . | . . . Parts Fried . | . . . Impact Corruptions . | . . . Robots Melted . | . . . Combat Hostiles . | . . . Parts Melted . | . . . Heat Transferred 1600 | . . 1600 Parts Sabotaged . | . . . Parts Stolen . | . . . Parts Stripped . | . . . Power Chain Reactions . | . . . Alert | -11 -10 -10 ------- Run | Yrd Mat Min Peak Influence 205 | . 205 102 Initial 24 | . . 24 Average 59 | . 98 17 Maximum Alert Level 1 | . 1 . Low Security (%) 99 | 100 99 100 Level 1 . | . . . Level 2 . | . . . Level 3 . | . . . Level 4 . | . . . Level 5 . | . . . High Security . | . . . Max Security . | . . . Squads Dispatched 4 | . 4 . Investigation 2 | . 2 . Extermination . | . . . Reinforcement 2 | . 2 . Assault . | . . . Garrison . | . . . Intercept . | . . . Searches Triggered . | . . . Construction Impeded . | . . . Haulers Reinforced . | . . . Active Scanning Responses . | . . . Cargo Convoy Interrupts . | . . . Stealth | -11 -10 -10 --------- Run | Yrd Mat Min Distress Signals 1 | . 1 . Communications Jammed . | . . . Distress Signals . | . . . Times Spotted 37 | . 30 7 Peak Tracking Total 5 | . 5 3 Tactical Retreats 5 | . 4 1 Traps | -11 -10 -10 ------- Run | Yrd Mat Min Traps Triggered 4 | . 4 . Indirectly . | . . . Trap Hack Attempts . | . . . Triggered . | . . . Disarmed . | . . . Reprogrammed . | . . . Reused . | . . . Traps Extracted . | . . . Installed . | . . . Triggered . | . . . Machines | -11 -10 -10 ---------- Run | Yrd Mat Min Machines Disabled . | . . . Max in Single Turn . | . . . Machines Repaired . | . . . Machines Dismantled . | . . . Machines Sabotaged . | . . . Overloaded Fab Kills . | . . . Hacking | -11 -10 -10 --------- Run | Yrd Mat Min Machines Accessed 3 | . 2 1 Terminals 2 | . 2 . Fabricators . | . . . Repair Stations . | . . . Recycling Units . | . . . Scanalyzers . | . . . Garrison Access . | . . . Total Hacks 10 | . 9 1 Successful 5 | . 4 1 Failed 4 | . 4 . Catastrophic 1 | . 1 . Database Lockouts 1 | . 1 . Manual 6 | . 6 . Terminals 9 | . 9 . Fabricators . | . . . Repair Stations . | . . . Recycling Units . | . . . Scanalyzers . | . . . Garrison Access . | . . . Terminal Hacks 5 | . 4 1 Prototype ID Bank 1 | . 1 . Open Door 1 | . . 1 Branch Access Points 1 | . 1 . Locate Traps 1 | . 1 . Zone Layout 1 | . 1 . Fabricator Hacks . | . . . Repair Station Hacks . | . . . Recycling Unit Hacks . | . . . Scanalyzer . | . . . Garrison Access Hacks . | . . . Unauthorized Hacks . | . . . Terminals . | . . . Fabricators . | . . . Repair Stations . | . . . Recycling Units . | . . . Scanalyzers . | . . . Garrison Access . | . . . Data Cores Recovered . | . . . Used . | . . . Hacking Detections 2 | . 2 . Full Trace Events 1 | . 1 . Feedback Events . | . . . Feedback Blocked . | . . . Robot Schematics Acquired . | . . . Robots Built . | . . . Authchips . | . . . Time . | . . . Total Robot Build Rating . | . . . Part Schematics Acquired . | . . . Parts Built . | . . . Authchips . | . . . Time . | . . . Total Part Build Rating . | . . . Parts Repaired . | . . . Time . | . . . Parts Recycled . | . . . Recycled Matter . | . . . Retrieved Matter . | . . . Retrieved Components . | . . . Parts Scanalyzed . | . . . Part Schematics Acquired . | . . . Parts Damaged . | . . . Bothacking | -11 -10 -10 ------------ Run | Yrd Mat Min Used RIF Installer . | . . . Robots Hacked . | . . . Non-combat . | . . . Combat . | . . . Robot Hacks Applied . | . . . Relay Couplers Released . | . . . Fabnet Peak Effective % . | . . . Robots Rewired . | . . . Allies Hacked . | . . . Hacks Repelled . | . . . Allies | -11 -10 -10 -------- Run | Yrd Mat Min Total Allies 1 | . . 1 Largest Group 1 | . . 1 Highest-Rated Group 31 | . . 31 Highest-Rated Ally 31 | . . 31 Total Orders . | . . . Ally Attacks 4 | . . 4 Total Damage 63 | . . 63 Kills 1 | . . 1 Allies Corrupted . | . . . Allies Melted . | . . . Intel | -11 -10 -10 ------- Run | Yrd Mat Min Robot Analysis Total . | . . . Derelict Logs Recovered 2 | . . 2 Drone Launches . | . . . Drone Recoveries . | . . . Exploration | -11 -10 -10 ------------- Run | Yrd Mat Min Turns Passed 2698 | 59 1420 1219 Spaces Moved 1294 | 35 637 622 Core 11 | 6 4 1 Treads 1276 | 23 632 621 Legs . | . . . Wheels 6 | 6 . . Hover 1 | . 1 . Flight . | . . . Fastest Speed 50 | 50 160 160 Average Speed 172 | 127 161 186 Slowest Speed 450 | 160 450 400 Overloaded Moves . | . . . Propulsion Burnouts . | . . . Robots Hopped . | . . . Cave-ins Triggered . | . . . Exploration Rate (%) 55 | 5 62 100 Regions Visited 2 Branch Regions 1 Pre-discovered Areas 1 | . . 1 Known Exits Taken 1 | . 1 . Unknown Exits Taken 1 | 1 . . Scrap Searched 1 | . . 1 Spaces Dug . | . . . Terrain Destroyed . | . . . Melee . | . . . Projectile . | . . . AOE . | . . . Terrain Rammed . | . . . Walls Destroyed . | . . . Machines Disabled . | . . . Actions | -11 -10 -10 --------- Run | Yrd Mat Min Total 1584 | 48 879 657 Wait 132 | . 120 12 Move 1292 | 34 636 622 Hop . | . . . Pick Up 19 | 7 7 5 Fast Attach 10 | 3 7 . Attach 9 | 3 3 3 Detach 1 | . 1 . Swap 8 | 1 7 . Drop 4 | . 4 . Fire 109 | . 94 15 Melee . | . . . Ram . | . . . Kick . | . . . Crush . | . . . Escape Stasis . | . . . Rewire . | . . . Trap . | . . . Miscellaneous . | . . . Route ------- -11/Scrapyard -10/Materials (discovered 3 exits: *Mat x2 / *Min) -10/Mines (discovered 1 exit: *Mat) History --------- Turn | Location | Event 31 | -11/Scrapyard | Discovered new exit (range 14) 60 | -11/Scrapyard | Entered Materials 310 | -10/Materials | Build established: Mutant 948 | -10/Materials | Discovered new exit (range 9) 1031 | -10/Materials | Core integrity fell below 50% 1068 | -10/Materials | Discovered new exit (range 16) 1176 | -10/Materials | Identified exit to Materials 1359 | -10/Materials | Discovered exit to Materials (range 14) 1359 | -10/Materials | Central database locked down 1359 | -10/Materials | Identified exit to Mines 1480 | -10/Materials | Entered Mines 1530 | -10/Mines | Learned 8 Materials zone layouts 1533 | -10/Mines | Found the Drone Emporium 1541 | -10/Mines | Found Prototype Device 1864 | -10/Mines | A weapon hastily lodged in a ceiling crevice suddenly fell to the ground 1939 | -10/Mines | Received a Mining Laser from a helpful Derelict 1939 | -10/Mines | Discovered exit to Materials (range 7) 2091 | -10/Mines | Learned location of Zion (-7) 2140 | -10/Mines | Core integrity fell below 20% 2699 | -10/Mines | Destroyed by G-47 Trooper with Particle Gun Last Messages --------------- 02178_ S-10 Pest overheating. 02179_ S-10 Pest heat damages core (-2). 02179_ S-10 Pest overheating. 02180_ S-10 Pest heat spikes uncontrollably. 02180_ S-10 Pest overheating. 02183_ S-10 Pest heat spikes uncontrollably. 02183_ S-10 Pest overheating. 02187_ S-10 Pest destroyed. 02188_ K-01 Serf collects debris. 02216_ Lgt. Treads destroyed. 02225_ S-10 Pest destroyed. 02227_ Acquired 2 matter. 02234_ R-06 Scavenger collects Flight Unit. 02252_ Acquired 18 matter. 02683_ T-07 Excavator destroyed. 02687_ K-01 Serf collects debris. 02689_ G-34 Mercenary destroyed. 02692_ K-01 Serf collects debris. 02695_ Lgt. Treads destroyed. 02695_ K-01 Serf collects debris. Map ----- +----------------------------------------------------+ | | | | | | | | | | | | | | | | | | | | | | | | | | | | | | | | | | | | | | | ?????????????????????????????????????????????????? | | ?####????????????????????????#######?????????????? | | ## ######??########????????## ##????????????? | | #### ##???????# ##???????????? | | ## ######### k ##??????????? | | ! ##?????????? | | ## @= %| #?????????? | | ####### ## #####g###### #?????????? | | ##?????### #### #???#[#????## #?????????? | | ?????????#####??# #???# #????## ##?????????? | | ????????????????## ##???# #???## ##?????????# | | ?????????????????####????# #??## ##????????# | | ?????????????????????????# #??# #????????# | | ?????????????????????????# #??# #???????## | | ?????????????????????????# #??# ##?????## | | ????????????????????????? ??## ## ##???## | | ????????????????????????? ""???######## ##??# | | ????????????????????????? ""??????????## #### | | ????????????????????????? ""??????????## ## | | ????????????????????????? ?????????## | | ?????????????????????????#??????????## | | ???????????????????????????????????## ## | | ??????????????????????????????????## ## | | #????????????????????????????????## # | | #???????????????????????????????## # | | #??????????????????????????????## ### ## | | #??????????????????????????????# ##?####? | | #?????????????????????????????## ##??????? | | #????????????????????????????## %## ##???????? | | ??????????????????????????#### ######????????? | | ?????????????????????????## #?????????????? | +----------------------------------------------------+ Best States ------------- Heat Dissipation 25 Energy Generation 14 Energy Capacity 250 Matter Stores 300 Matter Capacity 300 Sight Range 16 Robot Scan Range 14 Terrain Scan Density 10 Evasion (%) 44 Recoil Reduction 2 Item Schematics ----------------- None Robot Schematics ------------------ None Fabricated ------------ Nothing Alien Tech Used ----------------- None Achievements -------------- None Challenges ------------ None Game ------ Seed LightThrowingPurifier Manual? 0 Play Time 00:23:03 Cumulative 32.4 hours Start 2024.04.20 @ 13:54:30 End 2024.04.20 @ 14:29:51 Sessions 1 Manual Loads 0 Difficulty Rogue Special Mode None Game No. 55 Rogue 55 Adventurer 0 Explorer 0 Win Type - Total 0 Types 0/0/0/0/0/0/0/0/0 Lore% 21 Gallery% 27 Achievement% 23 Wizard Run 0 Options --------- Layout 1 ASCII 0 Keyboard 1 Movement Numpad Keybinds 0 Fullscreen 1 Font 24/Smallcaps Map View 50x35 Zoom Use 0% Tactical HUD 1 Map Filters NONE Filters NONE Steam 1 RUN: a5f69d0d-2463-4b16-880f-22096d0301a0